fUSD/lending_fUSD_20251110
["ID","MTS","AMOUNT","RATE_DAILY","PERIOD"]
[393557886,1762798241387,-500.0,0.00031997,30]
[393557887,1762798241396,-500.0,0.00031997,120]
[393557888,1762798241405,-500.0,0.00031997,120]
[393557889,1762798241414,-525.82294279,0.00031997,120]
[393557890,1762798241423,-500.0,0.00031997,120]
[393557891,1762798241432,-500.0,0.00031997,7]
[393557892,1762798241441,-500.0,0.00031997,120]
[393557893,1762798241450,-500.0,0.00031997,30]
[393557894,1762798241460,-500.0,0.00031997,120]
[393557895,1762798241469,-500.0,0.00031997,120]
[393557896,1762798241478,-500.0,0.00031997,30]
[393557897,1762798241487,-286.82660674,0.00031997,120]
[393557898,1762798241497,-500.0,0.00031999,120]
[393557899,1762798241506,-5080.19641101,0.00032,2]
[393557900,1762798241515,-506.40366032,0.00032162,2]
[393557901,1762798241525,-3306.44580128,0.00032271,2]
[393557902,1762798241534,-18073.5520474,0.0003249,3]
[393557903,1762798241543,-2217.772,0.00032491,32]
[393557904,1762798241554,-2000.0,0.000325,2]
[393557905,1762798241563,-260.9171715,0.00032599,120]
[393557906,1762798241572,-150.0,0.00032668,2]
[393557907,1762798241582,-595.43756423,0.00032668,2]
[393557908,1762798241591,-150.0,0.00032668,2]
[393557909,1762798241600,-287.63866297,0.00032668,2]
[393557910,1762798241609,-150.0,0.00032668,2]
[393557911,1762798241619,-308.85904091,0.00032668,2]
[393557912,1762798241630,-500.0,0.00032876,30]
[393557913,1762798241639,-334.84039979,0.00032876,30]
[393557914,1762798241648,-196.37,0.00032877,2]
[393557915,1762798241658,-500.0,0.00032877,30]
[393557916,1762798241667,-369.92776545,0.00032877,2]
[393557917,1762798241676,-239.0793146,0.00032877,10]
[393557918,1762798241686,-150.0,0.00032877,60]
[393557919,1762798241696,-604.15441672,0.00032877,7]
[393557920,1762798241705,-182.22,0.00032943,120]
[393557921,1762798241715,-18073.5520474,0.0003296,3]
[393557922,1762798241724,-1316.0,0.00032969,2]
[393557923,1762798241734,-608.0,0.0003297,2]
[393557924,1762798241743,-3426.0,0.0003297,2]
[393557925,1762798241752,-574.0,0.0003297,2]
[393557926,1762798241762,-820.0,0.0003297,2]
[393557927,1762798241771,-1597.0,0.0003297,2]
[393557928,1762798241780,-1274.0,0.0003297,2]
[393557929,1762798241789,-813.0,0.0003297,2]
[393557930,1762798241799,-906.0,0.00032984,2]
[393557931,1762798241809,-1189.0,0.00032984,2]
[393557932,1762798241821,-4404.347,0.00032984,2]
[393557933,1762798241830,-6662.0,0.00032984,2]
[393557934,1762798241840,-2142.0,0.00032984,2]
[393557935,1762798241849,-174.63370969,0.00033014,60]
[393557936,1762798241859,-2104.280186,0.00033014,120]
[393557937,1762798241868,-4286.77,0.000331,30]
[393557938,1762798241877,-500.0,0.00033151,30]
[393557939,1762798241888,-153.0,0.00033157,2]
[393557940,1762798241899,-153.0,0.00033157,2]
[393557941,1762798241908,-153.0,0.00033157,2]
[393557942,1762798241917,-153.0,0.00033157,2]
[393557943,1762798241927,-153.0,0.00033157,2]
[393557944,1762798241935,-153.0,0.00033157,2]
[393557945,1762798241945,-153.0,0.00033157,2]
[393557946,1762798241954,-153.0,0.00033157,2]
[393557947,1762798241963,-153.0,0.00033157,2]
[393557948,1762798241972,-153.0,0.00033157,2]
[393557949,1762798241981,-153.0,0.00033157,2]
[393557950,1762798241990,-153.0,0.00033157,2]
[393557951,1762798242000,-153.0,0.00033157,2]
[393557952,1762798242009,-153.0,0.00033157,2]
[393557953,1762798242018,-153.0,0.00033158,2]
[393557954,1762798242028,-153.0,0.00033158,2]
[393557955,1762798242037,-153.0,0.00033158,2]
[393557956,1762798242047,-153.0,0.00033158,2]
[393557957,1762798242056,-153.0,0.00033158,2]
[393557958,1762798242065,-153.0,0.00033158,2]
[393557959,1762798242074,-153.0,0.00033158,2]
[393557960,1762798242083,-153.0,0.00033158,2]
[393557961,1762798242092,-153.0,0.00033158,2]
[393557962,1762798242102,-153.0,0.00033158,2]
[393557963,1762798242111,-153.0,0.00033158,2]
[393557964,1762798242120,-153.0,0.00033158,2]
[393557965,1762798242129,-153.0,0.00033158,2]
[393557966,1762798242138,-153.0,0.00033158,2]
[393557967,1762798242147,-153.0,0.00033158,2]
[393557968,1762798242156,-153.0,0.00033158,2]
[393557969,1762798242165,-153.0,0.00033158,2]
[393557970,1762798242174,-153.0,0.00033158,2]
[393557971,1762798242184,-153.0,0.00033158,2]
[393557972,1762798242193,-153.0,0.00033158,2]
[393557973,1762798242205,-153.0,0.00033158,2]
[393557974,1762798242216,-153.0,0.00033165,2]
[393557975,1762798242226,-153.0,0.00033165,2]
[393557976,1762798242237,-153.0,0.00033165,2]
[393557977,1762798242246,-153.0,0.00033165,2]
[393557978,1762798242256,-153.0,0.00033165,2]
[393557979,1762798242266,-710.38,0.00033165,2]
[393557980,1762798242276,-1000.0,0.00033183,7]
[393557981,1762798242285,-942.17,0.000332,14]
[393557982,1762798242295,-347.64,0.00033337,2]
[393557983,1762798242304,-500.0,0.00033425,30]
[393557984,1762798242313,-1413.0,0.000336,2]
[393557985,1762798242323,-500.0,0.00033699,30]
[393557986,1762798242332,-18073.5520474,0.00033787,3]
[393557987,1762798242342,-363.78505277,0.00033797,15]
[393557988,1762798242351,-7425.58285903,0.00033799,2]
[393557989,1762798242360,-12807.94498043,0.00033799,2]
[393557990,1762798242369,-222.71783791,0.00033804,120]
[393557991,1762798242378,-184.12,0.000339,29]
[393557992,1762798242387,-200.499112,0.000339,9]
[393557993,1762798242396,-500.0,0.00033973,30]
[393557994,1762798242405,-2437.64,0.00034,60]
[393557995,1762798242415,-500.0,0.00034247,30]
[393557996,1762798242424,-2274.0,0.00034247,15]
[393557997,1762798242433,-2000.0,0.00034339,120]
[393557998,1762798242442,-18073.5520474,0.00034453,3]
[393557999,1762798242454,-500.0,0.00034463,7]
[393558000,1762798242463,-500.0,0.00034463,7]
[393558001,1762798242472,-500.0,0.00034463,7]
[393558002,1762798242481,-966.32813137,0.00034463,7]
[393558003,1762798242491,-500.0,0.00034463,7]
[393558004,1762798242500,-221.56866496,0.00034463,7]
[393558005,1762798242509,-316.28471736,0.00034463,7]
[393558006,1762798242519,-500.0,0.00034463,7]
[393558007,1762798242529,-500.0,0.00034463,7]
[393558008,1762798242538,-278.99273219,0.00034463,7]
[393558009,1762798242547,-500.0,0.00034463,7]
[393558010,1762798242556,-500.0,0.00034463,7]
[393558011,1762798242565,-500.0,0.00034463,7]
[393558012,1762798242574,-500.0,0.00034463,7]
[393558013,1762798242584,-500.0,0.00034463,7]
[393558014,1762798242593,-500.0,0.00034463,7]
[393558015,1762798242603,-500.0,0.00034463,7]
[393558016,1762798242612,-800.0,0.00034463,7]
[393558017,1762798242621,-500.0,0.00034463,7]
[393558018,1762798242631,-500.0,0.00034463,7]
[393558019,1762798242640,-998.29757791,0.00034463,7]
[393558020,1762798242650,-500.0,0.00034463,7]
[393558021,1762798242659,-474.5962031,0.00034463,7]
[393558022,1762798242668,-500.0,0.00034463,7]
[393558023,1762798242678,-500.0,0.00034463,7]
[393558024,1762798242687,-500.0,0.00034463,7]
[393558025,1762798242696,-500.0,0.00034463,7]
[393558026,1762798242707,-165.51749561,0.00034463,7]
[393558027,1762798242716,-500.0,0.00034463,7]
[393558028,1762798242725,-508.27223983,0.00034463,7]
[393558029,1762798242734,-504.73463064,0.00034463,7]
[393558030,1762798242743,-500.0,0.00034463,7]
[393558031,1762798242753,-500.0,0.00034463,7]
[393558032,1762798242762,-500.0,0.00034463,7]
[393558033,1762798242771,-500.0,0.00034463,7]
[393558034,1762798242781,-500.0,0.00034463,7]
[393558035,1762798242790,-500.0,0.00034463,7]
[393558037,1762798242799,-500.0,0.00034463,7]
[393558038,1762798242808,-500.0,0.00034463,7]
[393558039,1762798242821,-778.3686824,0.00034463,7]
[393558040,1762798242830,-500.0,0.00034463,7]
[393558041,1762798242839,-500.0,0.00034463,7]
[393558043,1762798242848,-500.0,0.00034463,7]
[393558044,1762798242858,-500.0,0.00034463,7]
[393558045,1762798242867,-500.0,0.00034463,7]
[393558046,1762798242876,-500.0,0.00034463,7]
[393558047,1762798242886,-500.0,0.00034463,7]
[393558048,1762798242896,-500.0,0.00034463,7]
[393558049,1762798242906,-500.0,0.00034463,7]
[393558050,1762798242915,-500.0,0.00034463,7]
[393558051,1762798242924,-500.0,0.00034463,7]
[393558052,1762798242933,-500.0,0.00034463,7]
[393558053,1762798242942,-982.75455222,0.00034463,7]
[393558054,1762798242952,-500.0,0.00034463,7]
[393558055,1762798242962,-152.13713097,0.00034463,7]
[393558057,1762798242971,-285.30517008,0.00034463,7]
[393558058,1762798242980,-637.77786076,0.00034463,7]
[393558059,1762798242990,-414.24,0.00034521,30]
[393558060,1762798242999,-7197.0,0.00034589,2]
[393558061,1762798243009,-4286.77,0.000346,30]
[393558062,1762798243018,-506.40366032,0.00034618,2]
[393558063,1762798243027,-942.17,0.000347,14]
[393558064,1762798243036,-413.468054,0.00034889,120]
[393558065,1762798243045,-18073.5520474,0.0003499,3]
[393558066,1762798243055,-6610.0,0.00035,5]
[393558067,1762798243064,-478.32096809,0.00035,7]
[393558068,1762798243073,-4499.40520268,0.00035187,2]
[393558069,1762798243092,-5063.42753239,0.00035187,2]
[393558070,1762798243103,-18073.5520474,0.00035287,3]
[393558071,1762798243113,-1000.0,0.00035456,7]
[393558072,1762798243123,-160.0,0.00035562,120]
[393558073,1762798243132,-196.37,0.00035616,2]
[393558074,1762798243142,-222.71783791,0.0003563,120]
[393558075,1762798243151,-2000.0,0.00035664,120]
[393558076,1762798243160,-18073.5520474,0.000357,3]
[393558077,1762798243170,-363.78505277,0.00035708,15]
[393558078,1762798243179,-7425.58285903,0.0003571,2]
[393558079,1762798243189,-12807.94498043,0.0003571,2]
[393558080,1762798243199,-155.0,0.0003589,30]
[393558081,1762798243210,-1316.0,0.00035969,2]
[393558082,1762798243219,-608.0,0.0003597,2]
[393558083,1762798243228,-3426.0,0.0003597,2]
[393558084,1762798243238,-574.0,0.0003597,2]
[393558085,1762798243247,-820.0,0.0003597,2]
[393558086,1762798243257,-1597.0,0.0003597,2]
[393558087,1762798243266,-1274.0,0.0003597,2]
[393558088,1762798243276,-813.0,0.0003597,2]
[393558089,1762798243285,-18073.5520474,0.00035974,3]
[393558090,1762798243295,-906.0,0.00035984,2]
[393558091,1762798243305,-1189.0,0.00035984,2]
[393558092,1762798243315,-6662.0,0.00035984,2]
[393558093,1762798243325,-2142.0,0.00035984,2]
[393558094,1762798243335,-155.0,0.00036,30]
[393558095,1762798243344,-478.32096809,0.00036,120]
[393558096,1762798243353,-478.09862864,0.00036,30]
[393558097,1762798243363,-606.987796,0.00036,120]
[393558098,1762798243372,-18073.5520474,0.00036027,3]
[393558099,1762798243381,-25000.0,0.00036037,2]
[393558100,1762798243391,-4286.77,0.000361,30]
[393558101,1762798243401,-1000.0,0.000362,2]
[393558102,1762798243410,-942.17,0.000362,14]
[393558103,1762798243421,-18073.5520474,0.00036209,3]
[393558104,1762798243431,-564.80130779,0.00036219,30]
[393558105,1762798243441,-500.0,0.00036219,120]
[393558106,1762798243450,-509.06504926,0.00036219,120]
[393558107,1762798243459,-598.32335337,0.00036219,120]
[393558109,1762798243469,-500.0,0.00036219,7]
[393558111,1762798243479,-500.0,0.00036219,120]
[393558113,1762798243488,-500.0,0.00036219,30]
[393558115,1762798243498,-500.0,0.00036219,120]
[393558117,1762798243508,-500.0,0.00036219,120]
[393558119,1762798243518,-500.0,0.00036219,30]
[393558121,1762798243528,-25000.0,0.0003622,2]
[393558122,1762798243537,-152.0,0.0003651,3]
[393558123,1762798243547,-18073.5520474,0.00036527,4]
[393558124,1762798243557,-18073.5520474,0.00036537,4]
[393558125,1762798243567,-25000.0,0.00036547,2]
[393558126,1762798243577,-2500.65,0.00036588,2]
[393558127,1762798243587,-879.66,0.00036593,5]
[393558128,1762798243596,-182.22,0.00036604,120]
[393558129,1762798243606,-2500.16,0.00036665,2]
[393558130,1762798243616,-2548.73,0.0003668,2]
[393558131,1762798243627,-5000.0,0.00036693,2]
[393558132,1762798243636,-600.0,0.00036727,13]
[393558133,1762798243646,-600.0,0.00036727,13]
[393558134,1762798243655,-600.0,0.00036727,13]
[393558135,1762798243665,-600.0,0.00036727,13]
[393558136,1762798243674,-600.0,0.00036727,13]
[393558137,1762798243684,-600.0,0.00036727,13]
[393558138,1762798243695,-600.0,0.00036727,13]
[393558139,1762798243705,-600.0,0.00036727,13]
[393558140,1762798243715,-600.0,0.00036727,13]
[393558141,1762798243727,-600.0,0.00036727,13]
[393558142,1762798243736,-600.0,0.00036727,13]
[393558143,1762798243746,-600.0,0.00036727,13]
[393558144,1762798243755,-600.0,0.00036727,13]
[393558145,1762798243764,-600.0,0.00036727,13]
[393558146,1762798243774,-600.0,0.00036727,13]
[393558147,1762798243783,-600.0,0.00036727,13]
[393558148,1762798243793,-600.0,0.00036727,13]
[393558149,1762798243802,-600.0,0.00036727,13]
[393558150,1762798243812,-600.0,0.00036727,13]
[393558151,1762798243825,-600.0,0.00036727,13]
[393558152,1762798243835,-999.0,0.00036776,120]
[393558153,1762798243844,-18073.5520474,0.00036777,4]
[393558154,1762798243853,-8772.86,0.00036787,2]
[393558155,1762798243863,-157.17,0.00036893,60]
[393558156,1762798243873,-150.35,0.00036898,60]
[393558157,1762798243882,-2548.74,0.00036908,2]
[393558158,1762798243891,-2500.15,0.00036953,2]
[393558159,1762798243903,-655.65,0.00036958,2]
[393558160,1762798243912,-2000.0,0.00036989,120]
[393558161,1762798243922,-500.0,0.00036989,120]
[393558162,1762798243932,-157.17,0.00036993,60]
[393558163,1762798243941,-150.35,0.00036998,60]
[393558164,1762798243950,-371.26744855,0.00037,3]
[393558165,1762798243959,-506.40366032,0.00037075,2]
[393558166,1762798243968,-157.17,0.00037093,60]
[393558167,1762798243978,-150.35,0.00037098,60]
[393558168,1762798243987,-157.17,0.00037193,60]
[393558169,1762798243997,-150.35,0.00037198,60]
[393558170,1762798244006,-190.95621981,0.000372,120]
[393558171,1762798244015,-157.1835769,0.00037293,60]
[393558172,1762798244025,-150.35,0.00037298,60]
[393558173,1762798244035,-1413.40704486,0.000373,2]
[393558174,1762798244045,-4286.77,0.000373,30]
[393558175,1762798244054,-479.5,0.00037317,30]
[393558176,1762798244064,-160.0,0.0003734,120]
[393558177,1762798244073,-155.0,0.00037397,30]
[393558178,1762798244083,-150.35,0.00037398,60]
[393558179,1762798244092,-942.17,0.000374,14]
[393558180,1762798244101,-222.71783791,0.00037456,120]
[393558181,1762798244290,-18073.5520474,0.00037488,4]
[393558182,1762798244301,-150.35,0.00037498,60]
[393558183,1762798244310,-150.35,0.00037598,60]
[393558184,1762798244320,-999.0,0.00037598,120]
[393558185,1762798244330,-363.78505277,0.00037618,15]
[393558186,1762798244340,-7425.58285903,0.0003762,2]
[393558187,1762798244350,-12807.94498043,0.0003762,2]
[393558188,1762798244359,-150.35,0.00037698,60]
[393558189,1762798244368,-1000.0,0.00037728,7]
[393558190,1762798244377,-150.35,0.00037798,60]
[393558191,1762798244386,-18073.5520474,0.00037846,4]
[393558192,1762798244396,-500.73901087,0.00037873,5]
[393558193,1762798244405,-150.35,0.00037898,60]
[393558194,1762798244414,-500.0,0.00037899,2]
[393558195,1762798244423,-18073.5520474,0.0003798,4]
[393558196,1762798244432,-36147.1040947,0.0003799,4]
[393558197,1762798244442,-151.0,0.00037997,14]
[393558198,1762798244451,-150.35,0.00037998,60]
[393558199,1762798244461,-500.0,0.00037999,120]
[393558200,1762798244470,-500.0,0.00037999,7]
[393558201,1762798244479,-433.66407383,0.00037999,120]
[393558202,1762798244489,-173.05580828,0.00037999,30]
[393558203,1762798244498,-500.0,0.00037999,120]
[393558204,1762798244509,-500.0,0.00037999,120]
[393558205,1762798244520,-500.0,0.00037999,30]
[393558206,1762798244529,-46000.0,0.00038,35]
[393558207,1762798244539,-2000.0,0.00038,2]
[393558208,1762798244548,-168.0,0.00038,2]
[393558209,1762798244558,-1622.0,0.00038,2]
[393558210,1762798244567,-37481.19768968,0.00038,30]
[393558211,1762798244576,-150.35,0.00038098,60]
[393558212,1762798244586,-455.61928232,0.000381,33]
[393558213,1762798244595,-673.0,0.00038127,20]
[393558214,1762798244605,-150.35,0.00038198,60]
[393558215,1762798244614,-150.35,0.00038298,60]
[393558216,1762798244624,-350.44,0.000383,120]
[393558217,1762798244633,-5000.0,0.000383,30]
[393558218,1762798244643,-300.0,0.00038315,89]
[393558219,1762798244653,-781.4722802,0.00038334,120]
[393558220,1762798244663,-500.0,0.00038334,7]
[393558221,1762798244672,-500.0,0.00038334,7]
[393558222,1762798244681,-500.0,0.00038334,7]
[393558223,1762798244691,-500.0,0.00038334,7]
[393558224,1762798244701,-500.0,0.00038334,7]
[393558225,1762798244711,-500.0,0.00038334,7]
[393558226,1762798244720,-500.0,0.00038334,7]
[393558227,1762798244729,-500.0,0.00038334,7]
[393558228,1762798244739,-500.0,0.00038334,7]
[393558229,1762798244748,-504.69,0.00038334,7]
[393558230,1762798244758,-1000.0,0.00038356,2]
[393558231,1762798244767,-1000.0,0.00038356,2]
[393558232,1762798244776,-1000.0,0.00038356,2]
[393558233,1762798244786,-1000.0,0.00038356,2]
[393558234,1762798244795,-1000.0,0.00038356,2]
[393558235,1762798244804,-1000.0,0.00038356,2]
[393558236,1762798244813,-1000.0,0.00038356,2]
[393558237,1762798244827,-1000.0,0.00038356,2]
[393558238,1762798244837,-1000.0,0.00038356,2]
[393558239,1762798244846,-1000.0,0.00038356,2]
[393558240,1762798244855,-1000.0,0.00038356,2]
[393558241,1762798244865,-1000.0,0.00038356,2]
[393558242,1762798244875,-1028.37693784,0.00038356,2]
[393558243,1762798244886,-500.0,0.00038356,2]
[393558244,1762798244898,-500.0,0.00038356,2]
[393558245,1762798244908,-500.0,0.00038356,2]
[393558246,1762798244918,-500.0,0.00038356,2]
[393558247,1762798244928,-500.0,0.00038356,2]
[393558248,1762798244939,-500.0,0.00038356,2]
[393558249,1762798244949,-500.0,0.00038356,2]
[393558250,1762798244959,-500.0,0.00038356,2]
[393558251,1762798244968,-500.0,0.00038356,2]
[393558252,1762798244978,-500.0,0.00038356,2]
[393558253,1762798244987,-500.0,0.00038356,2]
[393558254,1762798244996,-500.0,0.00038356,2]
[393558255,1762798245006,-500.0,0.00038356,2]
[393558256,1762798245015,-500.0,0.00038356,2]
[393558257,1762798245025,-500.0,0.00038356,2]
[393558258,1762798245035,-500.0,0.00038356,2]
[393558259,1762798245048,-500.0,0.00038356,2]
[393558260,1762798245058,-500.0,0.00038356,2]
[393558261,1762798245068,-500.0,0.00038356,2]
[393558262,1762798245078,-446.48208693,0.00038356,2]
[393558263,1762798245088,-500.0,0.00038356,2]
[393558264,1762798245098,-500.0,0.00038356,2]
[393558265,1762798245108,-613.32851672,0.00038356,2]
[393558266,1762798245118,-1374.1,0.00038356,2]
[393558267,1762798245134,-1374.1,0.00038356,2]
[393558268,1762798245147,-1374.1,0.00038356,2]
[393558269,1762798245157,-1374.1,0.00038356,2]
[393558270,1762798245167,-1374.1,0.00038356,2]
[393558271,1762798245177,-1374.1,0.00038356,2]
[393558272,1762798245186,-1374.1,0.00038356,2]
[393558273,1762798245196,-1374.1,0.00038356,2]
[393558274,1762798245207,-1374.1,0.00038356,2]
[393558275,1762798245217,-1374.1,0.00038356,2]
[393558276,1762798245226,-1374.1,0.00038356,2]
[393558277,1762798245236,-1374.1,0.00038356,2]
[393558278,1762798245246,-1374.1,0.00038356,2]
[393558279,1762798245255,-1374.1,0.00038356,2]
[393558280,1762798245264,-1374.1,0.00038356,2]
[393558281,1762798245276,-1374.1,0.00038356,2]
[393558282,1762798245287,-1374.1,0.00038356,2]
[393558283,1762798245296,-1374.1,0.00038356,2]
[393558284,1762798245307,-1374.1,0.00038356,2]
[393558285,1762798245316,-1374.1,0.00038356,2]
[393558286,1762798245326,-1374.1,0.00038356,2]
[393558287,1762798245335,-1374.1,0.00038356,2]
[393558288,1762798245345,-1374.1,0.00038356,2]
[393558289,1762798245355,-1374.23454808,0.00038356,2]
[393558290,1762798245364,-467.61772559,0.00038356,120]
[393558291,1762798245373,-375.46061368,0.00038356,120]
[393558292,1762798245383,-1163.03,0.00038356,2]
[393558293,1762798245392,-1163.03,0.00038356,2]
[393558294,1762798245401,-1163.03,0.00038356,2]
[393558295,1762798245410,-1163.03,0.00038356,2]
[393558296,1762798245420,-1163.03,0.00038356,2]
[393558297,1762798245429,-1163.03,0.00038356,2]
[393558298,1762798245438,-1163.03,0.00038356,2]
[393558299,1762798245447,-1163.03,0.00038356,2]
[393558300,1762798245457,-1163.03,0.00038356,2]
[393558301,1762798245466,-1163.03,0.00038356,2]
[393558302,1762798245476,-1163.03,0.00038356,2]
[393558303,1762798245485,-1163.03,0.00038356,2]
[393558304,1762798245494,-1163.03,0.00038356,2]
[393558305,1762798245503,-1163.03,0.00038356,2]
[393558306,1762798245513,-1163.03,0.00038356,2]
[393558307,1762798245523,-1163.03,0.00038356,2]
[393558308,1762798245533,-1163.03,0.00038356,2]
[393558309,1762798245543,-1163.03,0.00038356,2]
[393558310,1762798245552,-1163.03,0.00038356,2]
[393558311,1762798245562,-1163.03,0.00038356,2]
[393558312,1762798245571,-1163.03,0.00038356,2]
[393558313,1762798245580,-1163.03,0.00038356,2]
[393558314,1762798245590,-1163.03,0.00038356,2]
[393558315,1762798245599,-1163.05193667,0.00038356,2]
[393558316,1762798245610,-300.0,0.00038356,2]
[393558317,1762798245620,-300.0,0.00038356,2]
[393558318,1762798245630,-300.0,0.00038356,2]
[393558319,1762798245639,-300.0,0.00038356,2]
[393558320,1762798245650,-300.0,0.00038356,2]
[393558321,1762798245660,-300.0,0.00038356,2]
[393558322,1762798245670,-300.0,0.00038356,2]
[393558323,1762798245679,-300.0,0.00038356,2]
[393558324,1762798245689,-300.0,0.00038356,2]
[393558325,1762798245698,-300.0,0.00038356,2]
[393558326,1762798245708,-300.0,0.00038356,2]
[393558327,1762798245718,-300.0,0.00038356,2]
[393558328,1762798245727,-300.0,0.00038356,2]
[393558329,1762798245736,-333.40328937,0.00038356,2]
[393558331,1762798245746,-515.39494023,0.00038356,10]
[393558332,1762798245755,-944.56894104,0.00038356,120]
[393558333,1762798245765,-500.0,0.00038356,2]
[393558334,1762798245775,-150.35,0.00038398,120]
[393558335,1762798245784,-9477.40597512,0.000384,120]
[393558336,1762798245795,-4286.77,0.000384,30]
[393558337,1762798245804,-999.0,0.0003842,120]
[393558338,1762798245814,-150.35,0.00038498,120]
[393558339,1762798245827,-942.17,0.000385,14]
[393558340,1762798245836,-170.63341893,0.000385,5]
[393558341,1762798245846,-613.03,0.00038512,2]
[393558342,1762798245855,-480.21,0.00038512,2]
[393558343,1762798245866,-547.99,0.00038512,2]
[393558344,1762798245876,-673.0,0.0003852,20]
[393558345,1762798245885,-150.35,0.00038598,120]
[393558346,1762798245896,-1250.07,0.00038604,2]
[393558347,1762798245906,-479.21997086,0.00038652,2]
[393558348,1762798245915,-150.35,0.00038698,120]
[393558349,1762798245924,-500.0,0.00038712,2]
[393558350,1762798245935,-500.0,0.00038712,120]
[393558351,1762798245944,-500.0,0.00038712,120]
[393558352,1762798245954,-500.0,0.00038712,7]
[393558353,1762798245963,-500.0,0.00038712,7]
[393558354,1762798245973,-150.0,0.00038712,20]
[393558355,1762798245983,-500.0,0.00038712,120]
[393558356,1762798245992,-500.0,0.00038712,120]
[393558357,1762798246001,-362.31466483,0.00038712,120]
[393558358,1762798246011,-500.0,0.00038712,30]
[393558359,1762798246021,-500.0,0.00038712,30]
[393558360,1762798246030,-298713.3165247,0.00038713,120]
[393558362,1762798246040,-150.35,0.00038798,120]
[393558363,1762798246049,-479.21997085,0.000388,2]
[393558364,1762798246059,-178.13537007,0.000388,120]
[393558365,1762798246068,-178.13537005,0.000388,120]
[393558366,1762798246078,-178.13537005,0.000388,120]
[393558367,1762798246087,-1250.07,0.00038818,2]
[393558368,1762798246097,-1033.99972693,0.0003882,2]
[393558369,1762798246106,-283.533,0.00038888,30]
[393558370,1762798246116,-150.35,0.00038898,120]
[393558371,1762798246125,-591.54575894,0.000389,30]
[393558372,1762798246135,-673.0,0.00038913,20]
[393558373,1762798246144,-178.6188,0.0003894,2]
[393558374,1762798246153,-1315.871917,0.00038941,2]
[393558375,1762798246163,-479.21997085,0.00038947,2]
[393558376,1762798246173,-1033.99972693,0.0003895,2]
[393558377,1762798246183,-1316.0,0.00038969,2]
[393558378,1762798246192,-608.0,0.0003897,2]
[393558379,1762798246202,-3426.0,0.0003897,2]
[393558380,1762798246212,-574.0,0.0003897,2]
[393558381,1762798246221,-820.0,0.0003897,2]
[393558382,1762798246231,-1597.0,0.0003897,2]
[393558383,1762798246240,-1274.0,0.0003897,2]
[393558384,1762798246249,-813.0,0.0003897,2]
[393558385,1762798246258,-960.99,0.00038982,2]
[393558386,1762798246267,-906.0,0.00038984,2]
[393558387,1762798246276,-1189.0,0.00038984,2]
[393558388,1762798246286,-6662.0,0.00038984,2]
[393558389,1762798246295,-2142.0,0.00038984,2]
[393558390,1762798246304,-150.35,0.00038998,120]
[393558391,1762798246313,-168.0,0.00039,30]
[393558392,1762798246322,-478.32096809,0.00039,10]
[393558393,1762798246331,-478.32096809,0.00039,120]
[393558394,1762798246340,-1008.0,0.00039,7]
[393558395,1762798246349,-159.0,0.00039002,120]
[393558396,1762798246359,-62959.8989338,0.00039053,2]
[393558397,1762798246368,-218.38610253,0.00039061,2]